fUST/lending_fUST_20250501
["ID","MTS","AMOUNT","RATE_DAILY","PERIOD"]
[359506337,1746077441725,-400.0,0.00038356,12]
[359506338,1746077441737,-151.0,0.00038356,12]
[359506339,1746077441748,-400.0,0.00038356,12]
[359506340,1746077441758,-151.0,0.00038356,12]
[359506341,1746077441768,-400.0,0.00038356,12]
[359506342,1746077441778,-400.0,0.00038356,12]
[359506343,1746077441788,-151.0,0.00038356,12]
[359506344,1746077441798,-400.0,0.00038356,12]
[359506345,1746077441808,-400.0,0.00038356,12]
[359506346,1746077441818,-151.0,0.00038356,12]
[359506347,1746077441829,-151.0,0.00038356,12]
[359506348,1746077441838,-400.0,0.00038356,12]
[359506349,1746077441848,-244.29904153,0.00038356,12]
[359506350,1746077441858,-540.1939417,0.00038356,12]
[359506351,1746077441868,-400.0,0.00038356,12]
[359506352,1746077441878,-400.0,0.00038356,12]
[359506353,1746077441887,-500.0,0.00038356,12]
[359506354,1746077441896,-500.0,0.00038356,12]
[359506355,1746077441906,-500.0,0.00038356,12]
[359506356,1746077441915,-500.0,0.00038356,12]
[359506357,1746077441925,-500.0,0.00038356,12]
[359506358,1746077441935,-500.0,0.00038356,12]
[359506359,1746077441946,-500.0,0.00038356,12]
[359506360,1746077441956,-500.0,0.00038356,12]
[359506361,1746077441966,-500.0,0.00038356,12]
[359506362,1746077441977,-500.0,0.00038356,12]
[359506363,1746077441986,-500.0,0.00038356,12]
[359506364,1746077441995,-205.10656335,0.00038356,12]
[359506365,1746077442005,-151.0,0.00038356,12]
[359506366,1746077442015,-161.55437859,0.00038356,12]
[359506367,1746077442026,-406.09787749,0.00038356,12]
[359506368,1746077442037,-416.4955266,0.00038356,12]
[359506369,1746077442046,-507.31345278,0.00038356,12]
[359506370,1746077442057,-400.0,0.00038356,12]
[359506371,1746077442067,-400.0,0.00038356,12]
[359506372,1746077442077,-400.0,0.00038356,12]
[359506373,1746077442087,-408.28902017,0.00038356,12]
[359506374,1746077442097,-400.0,0.00038356,12]
[359506375,1746077442107,-507.70056186,0.00038356,12]
[359506376,1746077442116,-400.0,0.00038356,12]
[359506377,1746077442126,-400.0,0.00038356,12]
[359506378,1746077442136,-400.0,0.00038356,12]
[359506379,1746077442145,-400.0,0.00038356,12]
[359506380,1746077442155,-400.0,0.00038356,12]
[359506381,1746077442165,-400.0,0.00038356,12]
[359506382,1746077442175,-400.0,0.00038356,12]
[359506383,1746077442185,-400.0,0.00038356,12]
[359506384,1746077442195,-400.0,0.00038356,12]
[359506385,1746077442205,-400.0,0.00038356,12]
[359506386,1746077442215,-400.0,0.00038356,12]
[359506387,1746077442225,-400.0,0.00038356,12]
[359506388,1746077442235,-400.0,0.00038356,12]
[359506389,1746077442246,-400.0,0.00038356,12]
[359506390,1746077442256,-400.0,0.00038356,12]
[359506391,1746077442265,-400.0,0.00038356,12]
[359506392,1746077442275,-400.0,0.00038356,12]
[359506393,1746077442285,-400.0,0.00038356,12]
[359506394,1746077442295,-400.0,0.00038356,12]
[359506395,1746077442305,-400.0,0.00038356,12]
[359506396,1746077442314,-400.0,0.00038356,12]
[359506397,1746077442324,-400.0,0.00038356,12]
[359506398,1746077442334,-400.0,0.00038356,12]
[359506399,1746077442345,-400.0,0.00038356,12]
[359506400,1746077442357,-400.0,0.00038356,12]
[359506401,1746077442367,-400.0,0.00038356,12]
[359506402,1746077442377,-400.0,0.00038356,12]
[359506403,1746077442387,-409.58144674,0.00038356,12]
[359506404,1746077442396,-400.0,0.00038356,12]
[359506405,1746077442406,-400.0,0.00038356,12]
[359506406,1746077442416,-500.0,0.00038356,12]
[359506407,1746077442426,-400.0,0.00038356,12]
[359506408,1746077442436,-500.0,0.00038356,12]
[359506409,1746077442446,-400.0,0.00038356,12]
[359506410,1746077442456,-500.0,0.00038356,12]
[359506411,1746077442466,-500.0,0.00038356,12]
[359506412,1746077442476,-500.0,0.00038356,12]
[359506413,1746077442486,-500.0,0.00038356,12]
[359506414,1746077442497,-500.0,0.00038356,12]
[359506415,1746077442508,-400.0,0.00038356,12]
[359506416,1746077442518,-400.0,0.00038356,12]
[359506417,1746077442528,-400.0,0.00038356,12]
[359506418,1746077442538,-400.0,0.00038356,12]
[359506419,1746077442548,-400.0,0.00038356,12]
[359506420,1746077442558,-302.41994278,0.00038356,12]
[359506421,1746077442568,-400.0,0.00038356,12]
[359506422,1746077442577,-400.0,0.00038356,12]
[359506423,1746077442588,-400.0,0.00038356,12]
[359506424,1746077442599,-400.0,0.00038356,12]
[359506425,1746077442609,-400.0,0.00038356,12]
[359506426,1746077442619,-400.0,0.00038356,12]
[359506427,1746077442629,-400.0,0.00038356,12]
[359506428,1746077442639,-400.0,0.00038356,12]
[359506429,1746077442649,-400.0,0.00038356,12]
[359506430,1746077442662,-400.0,0.00038356,12]
[359506431,1746077442672,-400.0,0.00038356,12]
[359506432,1746077442683,-400.0,0.00038356,12]
[359506433,1746077442693,-400.0,0.00038356,12]
[359506434,1746077442703,-400.0,0.00038356,12]
[359506435,1746077442713,-400.0,0.00038356,12]
[359506436,1746077442723,-400.0,0.00038356,12]
[359506437,1746077442732,-400.0,0.00038356,12]
[359506438,1746077442742,-510.03409876,0.00038356,12]
[359506439,1746077442752,-400.0,0.00038356,12]
[359506440,1746077442763,-298.094277,0.00038356,12]
[359506442,1746077442774,-400.0,0.00038356,12]
[359506443,1746077442785,-400.0,0.00038356,12]
[359506444,1746077442795,-400.0,0.00038356,12]
[359506445,1746077442805,-400.0,0.00038356,12]
[359506447,1746077442816,-254.8,0.00038356,12]
[359506449,1746077442826,-400.0,0.00038356,12]
[359506451,1746077442836,-400.0,0.00038356,12]
[359506453,1746077442846,-151.0,0.00038356,14]
[359506455,1746077442856,-273.54346182,0.00038356,12]
[359506457,1746077442866,-151.0,0.00038356,14]
[359506459,1746077442877,-151.0,0.00038356,14]
[359506461,1746077442887,-151.0,0.00038356,14]
[359506463,1746077442897,-151.0,0.00038356,14]
[359506465,1746077442907,-151.0,0.00038356,14]
[359506467,1746077442917,-151.0,0.00038356,14]
[359506469,1746077442927,-151.0,0.00038356,14]
[359506470,1746077442936,-151.0,0.00038356,14]
[359506471,1746077442946,-151.0,0.00038356,14]
[359506472,1746077442956,-151.0,0.00038356,14]
[359506473,1746077442966,-400.0,0.00038356,12]
[359506474,1746077442976,-151.0,0.00038356,14]
[359506475,1746077442986,-400.0,0.00038356,12]
[359506476,1746077442996,-151.0,0.00038356,14]
[359506477,1746077443006,-151.0,0.00038356,14]
[359506478,1746077443016,-90.99119191,0.00038356,12]
[359506480,1746077444832,-500.0,0.00032999,7]
[359506482,1746077444940,-477.72645301,0.00032999,7]
[359506483,1746077444951,-263.30552986,0.00032999,7]
[359506484,1746077444962,-309.00880809,0.00038356,12]
[359506485,1746077444971,-400.0,0.00038356,12]
[359506486,1746077444982,-151.0,0.00038356,14]
[359506487,1746077444992,-198.316186,0.00038356,14]
[359506488,1746077445002,-400.0,0.00038356,12]
[359506489,1746077445013,-151.0,0.00038356,14]
[359506490,1746077445022,-400.0,0.00038356,12]
[359506491,1746077445032,-400.0,0.00038356,12]
[359506492,1746077445042,-151.0,0.00038356,14]
[359506493,1746077445053,-400.0,0.00038356,12]
[359506494,1746077445064,-400.0,0.00038356,12]
[359506495,1746077445075,-151.0,0.00038356,14]
[359506496,1746077445085,-400.0,0.00038356,12]
[359506497,1746077445095,-400.0,0.00038356,12]
[359506498,1746077445105,-400.0,0.00038356,12]
[359506499,1746077445117,-400.0,0.00038356,12]
[359506500,1746077445128,-400.0,0.00038356,12]
[359506501,1746077445138,-161.484352,0.00038356,14]
[359506502,1746077445150,-204.86720176,0.00038356,12]
[359506504,1746077446207,-505.48030845,0.00032999,7]
[359506506,1746077446218,-1388.44167601,0.00038246,2]
[359506507,1746077446231,-195.13279824,0.00038356,12]
[359506508,1746077446242,-400.0,0.00038356,12]
[359506509,1746077446256,-500.0,0.00038356,12]
[359506510,1746077446267,-500.0,0.00038356,12]
[359506511,1746077446276,-500.0,0.00038356,12]
[359506512,1746077446286,-313.3413528,0.00038356,12]
[359506513,1746077446296,-400.0,0.00038356,12]
[359506514,1746077446306,-400.0,0.00038356,12]
[359506515,1746077446315,-400.0,0.00038356,12]
[359506516,1746077446325,-400.0,0.00038356,12]
[359506517,1746077446335,-400.0,0.00038356,12]
[359506518,1746077446344,-400.0,0.00038356,12]
[359506519,1746077446354,-268.64364248,0.00038356,12]
[359506520,1746077446365,-400.0,0.00038356,12]
[359506521,1746077446376,-390.77816216,0.00038356,12]
[359506522,1746077446386,-400.0,0.00038356,12]
[359506523,1746077446396,-400.0,0.00038356,12]
[359506524,1746077446406,-412.01090058,0.00038356,12]
[359506525,1746077446417,-400.0,0.00038356,12]
[359506526,1746077446429,-416.31825546,0.00038356,12]
[359506528,1746077446439,-450.74523369,0.00038356,8]
[359506529,1746077446452,-400.0,0.00038356,12]
[359506530,1746077446462,-400.0,0.00038356,12]
[359506531,1746077446473,-400.0,0.00038356,12]
[359506532,1746077446483,-400.0,0.00038356,12]
[359506533,1746077446493,-400.0,0.00038356,12]
[359506534,1746077446502,-400.0,0.00038356,12]
[359506535,1746077446512,-400.0,0.00038356,12]
[359506536,1746077446521,-400.0,0.00038356,12]
[359506537,1746077446531,-400.0,0.00038356,12]
[359506538,1746077446540,-468.92,0.00038356,12]
[359506539,1746077446551,-827.48,0.00038356,12]
[359506540,1746077446560,-827.48,0.00038356,12]
[359506541,1746077446571,-827.48,0.00038356,12]
[359506542,1746077446581,-400.0,0.00038356,12]
[359506543,1746077446590,-827.48,0.00038356,12]
[359506544,1746077446601,-400.0,0.00038356,12]
[359506545,1746077446610,-827.48,0.00038356,12]
[359506546,1746077446621,-400.0,0.00038356,12]
[359506547,1746077446632,-827.48,0.00038356,12]
[359506548,1746077446643,-400.0,0.00038356,12]
[359506549,1746077446653,-362.43938438,0.00038356,12]
[359506550,1746077446671,-253.9710398,0.00038356,12]
[359506551,1746077446683,-211.06957582,0.00038356,12]
[359506552,1746077446692,-306.59,0.00038356,12]
[359506553,1746077446702,-827.48,0.00038356,12]
[359506554,1746077446714,-827.48,0.00038356,12]
[359506555,1746077446725,-391.536143,0.00038356,14]
[359506556,1746077446735,-827.48,0.00038356,12]
[359506557,1746077446749,-391.536143,0.00038356,14]
[359506558,1746077446760,-827.48,0.00038356,12]
[359506559,1746077446771,-827.48,0.00038356,12]
[359506560,1746077446781,-391.536143,0.00038356,14]
[359506561,1746077446791,-827.48,0.00038356,12]
[359506562,1746077446801,-391.536143,0.00038356,14]
[359506563,1746077446810,-827.48,0.00038356,12]
[359506564,1746077446820,-415.73,0.00038356,12]
[359506565,1746077446829,-827.48,0.00038356,12]
[359506566,1746077446839,-391.536143,0.00038356,14]
[359506567,1746077446850,-415.73,0.00038356,12]
[359506568,1746077446860,-827.48,0.00038356,12]
[359506569,1746077446872,-827.48,0.00038356,12]
[359506570,1746077446884,-391.536143,0.00038356,14]
[359506571,1746077446894,-415.73,0.00038356,12]
[359506572,1746077446905,-827.48,0.00038356,12]
[359506573,1746077446916,-391.536143,0.00038356,14]
[359506574,1746077446925,-827.48,0.00038356,12]
[359506575,1746077446936,-827.48,0.00038356,12]
[359506576,1746077446946,-415.73,0.00038356,12]
[359506577,1746077446957,-391.536143,0.00038356,14]
[359506578,1746077446966,-827.48,0.00038356,12]
[359506579,1746077446977,-415.73,0.00038356,12]
[359506580,1746077446987,-827.48,0.00038356,12]
[359506581,1746077446998,-415.73,0.00038356,12]
[359506582,1746077447007,-827.48,0.00038356,12]
[359506583,1746077447017,-165.8276934,0.00038356,12]
[359506650,1746078409108,-246.99067015,0.00035436,120]
[359506651,1746078431090,-199.97334055,0.00035637,2]
[359506652,1746078431111,-427.8109829,0.00035737,2]
[359506653,1746078431281,-173.9562866,0.0003605,2]
[359506654,1746078431305,-202.17501298,0.000369,35]
[359506655,1746078431326,-1415.17827309,0.00037523,3]
[359506656,1746078439090,-1021.83147945,0.00035336,120]
[359506657,1746078448093,-725.23853939,0.00035336,120]
[359506658,1746078453131,-385.36193101,0.00035336,120]
[359506659,1746078453152,-388.7390396,0.00036558,4]
[359506660,1746078453172,-164.94915705,0.00037423,2]
[359506661,1746078453193,-184.82172691,0.00037523,3]
[359506662,1746078453214,-58.0178651,0.00037852,2]
[359506664,1746078554127,-281.821428,0.00027397,2]
[359506665,1746078554147,-154.4892428,0.00027397,3]
[359506666,1746078572105,-281.821428,0.00033165,2]
[359506667,1746078588814,-202.17501298,0.000369,35]
[359506668,1746078588842,-181.569,0.00037968,50]
[359506669,1746078588872,-2239.65137552,0.00038355,120]
[359506670,1746078588947,-250.0,0.000386,30]
[359506671,1746078588974,-353638.88537554,0.00039,30]
[359506672,1746078588999,-160.0,0.00039,30]
[359506673,1746078589024,-421.4777418,0.00039,30]
[359506674,1746078589050,-362.0172928,0.00039123,30]
[359506675,1746078589075,-362.0172928,0.00039123,30]
[359506676,1746078589099,-362.0172928,0.00039123,30]
[359506677,1746078589124,-362.0172928,0.00039123,30]
[359506678,1746078589148,-362.0172928,0.00039123,30]
[359506679,1746078589172,-724.0345856,0.00039123,30]
[359506680,1746078589197,-223.03,0.0003965,120]
[359506681,1746078589221,-700.0,0.00039664,60]
[359506682,1746078589246,-300470.676704,0.000399,30]
[359506683,1746078589271,-170.47426,0.0004,90]
[359506684,1746078589296,-3006.5667138,0.0004,30]
[359506685,1746078589321,-241.16618394,0.0004,31]
[359506686,1746078589347,-50305.83653763,0.0004,120]
[359506687,1746078589378,-2982.92625916,0.0004,120]
[359506688,1746078589411,-49827.52120226,0.0004,30]
[359506689,1746078589440,-952.04334736,0.0004,120]
[359506690,1746078589473,-1132.17527742,0.0004,120]
[359506691,1746078589502,-375.41039798,0.0004,120]
[359506692,1746078589535,-428.86085507,0.0004,30]
[359506693,1746078589563,-172.28166848,0.0004,60]
[359506694,1746078589592,-43315.38990369,0.0004,30]
[359506695,1746078589621,-500.0,0.00040007,120]
[359506696,1746078589650,-383.09,0.00040007,120]
[359506697,1746078589680,-700.0,0.00040212,60]
[359506698,1746078589711,-890.38777978,0.00040354,77]
[359506699,1746078589738,-250.0,0.000406,30]
[359506700,1746078589769,-700.0,0.0004076,60]
[359506701,1746078589797,-625.79,0.00040785,120]
[359506702,1746078589825,-625.79,0.00040985,120]
[359506703,1746078589852,-160.0,0.00041,64]
[359506704,1746078589894,-1551.0,0.0004107,120]
[359506705,1746078589924,-1551.0,0.0004107,120]
[359506706,1746078589953,-274.29,0.0004108,120]
[359506707,1746078589982,-1551.0,0.0004108,120]
[359506708,1746078590013,-1551.0,0.0004108,120]
[359506709,1746078590042,-1551.0,0.0004108,120]
[359506710,1746078590068,-1555.24,0.0004108,120]
[359506711,1746078590093,-1551.0,0.0004109,120]
[359506712,1746078590119,-1551.0,0.0004109,120]
[359506713,1746078590150,-1551.0,0.0004109,120]
[359506714,1746078590177,-1551.0,0.0004109,120]
[359506715,1746078590203,-1000.0,0.00041095,120]
[359506716,1746078590232,-172.36264992,0.00041095,120]
[359506717,1746078590260,-21727.99,0.000411,30]
[359506718,1746078590287,-1596.28,0.000411,30]
[359506719,1746078590313,-4955.86,0.000411,30]
[359506720,1746078590339,-265.46514717,0.000411,120]
[359506721,1746078590366,-265.46514717,0.000411,120]
[359506722,1746078590394,-265.46514717,0.000411,120]
[359506723,1746078590421,-265.46514717,0.000411,120]
[359506724,1746078590451,-265.46514717,0.000411,120]
[359506725,1746078590479,-265.46514717,0.000411,120]
[359506726,1746078590507,-265.46514717,0.000411,120]
[359506727,1746078590538,-265.46514717,0.000411,120]
[359506728,1746078590565,-265.46514717,0.000411,120]
[359506729,1746078590592,-265.46514717,0.000411,120]
[359506730,1746078590621,-265.46514717,0.000411,120]
[359506731,1746078590653,-265.46514717,0.000411,120]
[359506732,1746078590681,-265.46514717,0.000411,120]
[359506733,1746078590711,-265.46514717,0.000411,120]
[359506734,1746078590739,-265.46514717,0.000411,120]
[359506735,1746078590770,-265.46514717,0.000411,120]
[359506736,1746078590797,-265.46514717,0.000411,120]
[359506737,1746078590825,-265.46514717,0.000411,120]
[359506738,1746078590852,-265.46514717,0.000411,120]
[359506739,1746078591026,-265.46,0.000411,120]
[359506740,1746078591050,-619.41867673,0.000411,120]
[359506741,1746078591074,-619.41867673,0.000411,120]
[359506742,1746078591098,-619.41867673,0.000411,120]
[359506743,1746078591122,-619.41867673,0.000411,120]
[359506744,1746078591146,-619.41867673,0.000411,120]
[359506745,1746078591170,-619.41867673,0.000411,120]
[359506746,1746078591197,-619.41867673,0.000411,120]
[359506747,1746078591222,-619.41867673,0.000411,120]
[359506748,1746078591246,-619.41867673,0.000411,120]
[359506749,1746078591269,-619.41867673,0.000411,120]
[359506750,1746078591294,-619.41867673,0.000411,120]
[359506751,1746078591318,-619.41867673,0.000411,120]
[359506752,1746078591342,-619.41867673,0.000411,120]
[359506753,1746078591366,-619.41867673,0.000411,120]
[359506754,1746078591390,-619.41867673,0.000411,120]
[359506755,1746078591414,-619.41867673,0.000411,120]
[359506756,1746078591438,-619.41867673,0.000411,120]
[359506757,1746078591464,-619.41867673,0.000411,120]
[359506758,1746078591489,-619.41867673,0.000411,120]
[359506759,1746078591515,-619.41,0.000411,120]
[359506760,1746078591541,-159.53844644,0.000411,120]
[359506761,1746078591565,-159.53844644,0.000411,120]
[359506762,1746078591588,-159.53844644,0.000411,120]
[359506763,1746078591612,-159.53844644,0.000411,120]
[359506764,1746078591638,-159.53844644,0.000411,120]
[359506765,1746078591662,-159.53844644,0.000411,120]
[359506766,1746078591686,-159.53844644,0.000411,120]
[359506767,1746078591713,-159.53844644,0.000411,120]
[359506768,1746078591739,-159.53844644,0.000411,120]
[359506769,1746078591764,-159.53844644,0.000411,120]
[359506770,1746078591788,-159.53844644,0.000411,120]
[359506771,1746078591813,-159.53844644,0.000411,120]
[359506772,1746078591838,-159.53844644,0.000411,120]
[359506773,1746078591862,-159.53,0.000411,120]
[359506774,1746078591889,-260.57946252,0.000411,120]
[359506775,1746078591912,-260.57946252,0.000411,120]
[359506776,1746078591937,-260.57946252,0.000411,120]
[359506777,1746078591963,-260.57946252,0.000411,120]
[359506778,1746078591989,-260.57946252,0.000411,120]
[359506779,1746078592014,-260.57946252,0.000411,120]
[359506781,1746078592038,-260.57946252,0.000411,120]
[359506783,1746078592062,-260.57946252,0.000411,120]
[359506784,1746078592086,-260.57946252,0.000411,120]
[359506786,1746078592109,-260.57946252,0.000411,120]
[359506788,1746078592133,-260.57946252,0.000411,120]
[359506789,1746078592157,-260.57946252,0.000411,120]
[359506790,1746078592181,-260.57946252,0.000411,120]
[359506792,1746078592205,-260.57946252,0.000411,120]
[359506793,1746078592230,-260.57946252,0.000411,120]
[359506794,1746078592254,-260.57946252,0.000411,120]
[359506795,1746078592278,-260.57946252,0.000411,120]
[359506796,1746078592301,-260.57946252,0.000411,120]
[359506797,1746078592326,-260.57946252,0.000411,120]
[359506798,1746078592350,-260.57,0.000411,120]
[359506799,1746078592374,-159.66767673,0.000411,120]
[359506800,1746078592397,-159.66767673,0.000411,120]
[359506801,1746078592420,-159.66767673,0.000411,120]
[359506802,1746078592444,-159.66767673,0.000411,120]
[359506803,1746078592471,-159.66767673,0.000411,120]
[359506804,1746078592496,-159.66767673,0.000411,120]
[359506805,1746078592521,-159.66767673,0.000411,120]
[359506806,1746078592548,-159.66767673,0.000411,120]
[359506807,1746078592572,-159.66767673,0.000411,120]
[359506808,1746078592595,-159.66767673,0.000411,120]
[359506809,1746078592620,-159.66767673,0.000411,120]
[359506810,1746078592644,-159.66767673,0.000411,120]
[359506811,1746078592667,-159.66767673,0.000411,120]
[359506812,1746078592691,-159.66767673,0.000411,120]
[359506813,1746078592716,-159.66767673,0.000411,120]
[359506814,1746078592740,-159.66767673,0.000411,120]
[359506815,1746078592764,-159.66767673,0.000411,120]
[359506816,1746078592788,-159.66767673,0.000411,120]
[359506817,1746078592813,-159.66767673,0.000411,120]
[359506818,1746078592837,-159.66,0.000411,120]
[359506819,1746078592860,-372.55791237,0.000411,120]
[359506820,1746078592884,-372.55791237,0.000411,120]
[359506821,1746078592908,-372.55791237,0.000411,120]
[359506822,1746078592932,-372.55791237,0.000411,120]
[359506823,1746078592959,-372.55791237,0.000411,120]
[359506824,1746078592984,-372.55791237,0.000411,120]
[359506825,1746078593094,-372.55791237,0.000411,120]
[359506826,1746078593121,-150.5,0.0004112,120]
[359506827,1746078593146,-150.5,0.0004112,120]
[359506828,1746078593169,-1000.0,0.00041123,120]
[359506829,1746078593192,-150.5,0.0004113,120]
[359506830,1746078593215,-150.5,0.0004113,120]
[359506831,1746078593240,-219.48,0.0004113,120]
[359506832,1746078593264,-150.5,0.0004114,120]
[359506833,1746078593288,-150.5,0.0004114,120]
[359506834,1746078593312,-150.5,0.0004114,120]
[359506835,1746078593336,-150.5,0.0004114,120]
[359506836,1746078593359,-1000.0,0.0004115,120]
[359506837,1746078593383,-1000.0,0.00041178,120]
[359506838,1746078593406,-624.17721391,0.00041185,120]
[359506839,1746078608840,-372.55791237,0.000411,120]
[359506840,1746078608867,-372.55791237,0.000411,120]
[359506841,1746078608889,-372.55791237,0.000411,120]
[359506842,1746078608912,-372.55791237,0.000411,120]
[359506843,1746078608933,-372.55791237,0.000411,120]
[359506844,1746078608955,-372.55791237,0.000411,120]
[359506845,1746078608978,-372.55791237,0.000411,120]
[359506846,1746078608999,-372.55791237,0.000411,120]
[359506847,1746078609025,-372.55791237,0.000411,120]
[359506848,1746078609049,-372.55791237,0.000411,120]
[359506849,1746078609073,-372.55791237,0.000411,120]
[359506850,1746078609101,-372.55791237,0.000411,120]
[359506851,1746078609126,-372.55,0.000411,120]
[359506852,1746078609150,-179.89467565,0.00041184,120]
[359506853,1746078609175,-1.61278609,0.00041185,120]
[359506854,1746078609200,-1000.0,0.00041205,120]
[359506855,1746078609225,-1000.0,0.00041232,120]
[359506856,1746078609249,-1000.0,0.0004126,120]
[359506857,1746078609273,-200.0,0.0004128,120]
[359506858,1746078609298,-1000.0,0.00041287,120]
[359506859,1746078609324,-2263.8,0.000413,30]
[359506860,1746078609348,-700.0,0.00041308,60]
[359506861,1746078609373,-1000.0,0.00041315,120]
[359506862,1746078609397,-1000.0,0.00041342,120]
[359506863,1746078609421,-797.55,0.00041369,30]
[359506864,1746078609447,-1000.0,0.00041369,120]
[359506865,1746078609474,-625.79,0.00041385,120]
[359506866,1746078609500,-1000.0,0.00041397,120]
[359506867,1746078609525,-1000.0,0.00041424,120]
[359506868,1746078609554,-1000.0,0.00041452,120]
[359506869,1746078609579,-1000.0,0.00041479,120]
[359506870,1746078609603,-1000.0,0.00041506,120]
[359506871,1746078609628,-500.0,0.00041508,30]
[359506872,1746078609652,-1000.0,0.00041534,120]
[359506873,1746078609837,-694.96294573,0.00041561,120]
[359506874,1746078609866,-625.79,0.00041585,120]
[359506875,1746078609893,-200.0,0.00041646,120]
[359506876,1746078609921,-200.0,0.00041663,120]
[359506877,1746078609947,-625.79,0.00041785,120]
[359506878,1746078609972,-700.0,0.00041856,60]
[359506879,1746078610001,-200.0,0.00041857,120]
[359506880,1746078610025,-797.55,0.00041917,31]
[359506881,1746078610049,-625.79,0.00041985,120]
[359506882,1746078610074,-678.23163332,0.00042,120]
[359506883,1746078610098,-1168.92699241,0.00042,30]
[359506884,1746078610123,-350.0,0.00042,120]
[359506885,1746078610147,-1098.64186678,0.00042,120]
[359506886,1746078610172,-421.4777418,0.00042,120]
[359506887,1746078610196,-625.79,0.00042185,120]
[359506888,1746078610220,-223.03,0.0004233,120]
[359506889,1746078610246,-625.79,0.00042385,120]
[359506890,1746078610271,-700.0,0.00042404,60]
[359506891,1746078610297,-160.0,0.00042454,120]
[359506892,1746078610322,-797.55,0.00042465,32]
[359506893,1746078610347,-625.79,0.00042585,120]
[359506894,1746078610372,-625.79,0.00042785,120]
[359506895,1746078610398,-2263.8,0.000428,30]
[359506896,1746078610423,-625.79,0.00042985,120]
[359506897,1746078610448,-387.29939204,0.00043,120]
[359506898,1746078610476,-665.0,0.00043,120]
[359506899,1746078610501,-1488.34199514,0.00043,120]
[359506900,1746078610526,-269.557322,0.00043,30]
[359506901,1746078610552,-388.37970302,0.00043,120]
[359506902,1746078610577,-160.0838491,0.00043,120]
[359506903,1746078610601,-21727.99,0.00043,30]
[359506904,1746078610626,-1596.28,0.00043,30]
[359506905,1746078610652,-4955.86,0.00043,30]
[359506906,1746078610675,-797.55,0.00043013,33]
[359506907,1746078610699,-625.79,0.00043185,120]
[359506908,1746078610725,-410.0,0.00043382,30]
[359506909,1746078610750,-625.79,0.00043385,120]
[359506910,1746078610775,-700.0,0.000435,60]
[359506911,1746078610799,-207.0,0.000435,30]
[359506912,1746078610824,-797.55,0.00043561,34]
[359506913,1746078610848,-625.79,0.00043585,120]
[359506914,1746078610872,-500.0,0.00043693,30]
[359506915,1746078610896,-500.0,0.00043693,120]
[359506916,1746078610920,-500.0,0.00043693,120]
[359506917,1746078610944,-500.0,0.00043693,120]
[359506918,1746078610968,-500.0,0.00043693,120]
[359506919,1746078610992,-500.0,0.00043693,120]
[359506920,1746078611017,-500.0,0.00043693,120]
[359506921,1746078611042,-500.0,0.00043693,120]
[359506922,1746078611067,-500.0,0.00043693,120]
[359506923,1746078611091,-266.0,0.00043693,120]
[359506924,1746078611116,-500.0,0.00043693,120]
[359506925,1746078611140,-500.0,0.00043693,120]
[359506926,1746078611167,-500.0,0.00043693,120]